[Event "FIDE WYCC Girls U14 2023"]
[Site "Montesilvano"]
[Date "2023.11.23"]
[Round "10.26"]
[White "Maklakova, Naomi"]
[Black "Haapsal, Maria Ioanna"]
[Result "1-0"]
[ECO "A45"]
[WhiteElo "1873"]
[BlackElo "1597"]
[Annotator "NA"]
[PlyCount "57"]
[EventDate "2023.11.13"]
[EventType "swiss"]
[EventCountry "ITA"]
[SourceTitle "playchess.com"]
[Source "ChessBase"]
[SourceQuality "1"]
[TimeControl "40/5400+30:1800+30"]

1. d4 {[%emt 0:00:33]} Nf6 {[%emt 0:00:26]} 2. Bf4 {[%emt 0:00:07]} g6 {[%emt 0:00:34]} 3. Nc3 {[%emt 0:00:08]} Bg7 {[%emt 0:00:16]} 4. e4 {[%emt 0:00:14]} d6 {[%emt 0:00:34]} 5. Qd2 {[%emt 0:00:31]} Nbd7 {[%emt 0:01:19]} 6. O-O-O {[%emt 0:02:10]} O-O {[%emt 0:03:13]} 7. f3 {[%emt 0:02:17]} c5 {[%emt 0:01:40]} 8. dxc5 {[%emt 0:02:08]} dxc5 {[%emt 0:08:32]} 9. Bh6 {[%emt 0:01:48]} Qa5 {[%emt 0:05:52]} 10. Kb1 {[%emt 0:03:27]} Re8 {[%emt 0:04:43]} 11. h4 {[%emt 0:02:52]} Bh8 {[%emt 0:08:33]} 12. h5 {[%emt 0:02:16]} Nxh5 {[%emt 0:06:37]} 13. Nge2 {[%emt 0:05:10]} c4 {[%emt 0:07:51]} 14. f4 {[%emt 0:02:19]} Nhf6 {[%emt 0:07:20]} 15. f5 {[%emt 0:04:46]} Ng4 {[%emt 0:02:55]} 16. Nd4 {[%emt 0:06:57]} Nxh6 {[%emt 0:06:35]} 17. Qxh6 {[%emt 0:00:15]} Nf8 {[%emt 0:00:43]} 18. fxg6 {[%emt 0:01:10]} fxg6 {[%emt 0:00:20]} 19. Bxc4+ {[%emt 0:00:06]} e6 {[%emt 0:01:10]} 20. Rdf1 {[%emt 0:03:52]} Bg7 21. Rxf8+ {[%emt 0:04:20]} Rxf8 {[%emt 0:04:26]} 22. Qxh7+ {[%emt 0:00:06]} Kf7 {[%emt 0:00:06]} 23. Rf1+ {[%emt 0:00:10]} Ke8 {[%emt 0:00:36]} 24. Qxg6+ {[%emt 0:02:04]} Kd8 {[%emt 0:00:16]} 25. Nxe6+ {[%emt 0:06:14]} Bxe6 {[%emt 0:00:22]} 26. Rd1+ {[%emt 0:00:04]} Kc7 {[%emt 0:03:24]} 27. Qxg7+ {[%emt 0:01:03]} Rf7 {[%emt 0:00:19]} 28. Qg3+ {[%emt 0:00:07]} Kc6 {[%emt 0:00:50]} 29. Qd6# {[%emt 0:00:25]} 1-0

[Event "FIDE WYCC Girls U14 2023"]
[Site "Montesilvano"]
[Date "2023.11.23"]
[Round "10.27"]
[White "Valente, Sofia"]
[Black "Yu, Avery"]
[Result "0-1"]
[ECO "D31"]
[WhiteElo "1604"]
[BlackElo "1861"]
[Annotator "NA"]
[PlyCount "60"]
[EventDate "2023.11.13"]
[EventType "swiss"]
[EventCountry "ITA"]
[SourceTitle "playchess.com"]
[Source "ChessBase"]
[SourceQuality "1"]
[TimeControl "40/5400+30:1800+30"]

1. d4 {[%emt 0:00:15]} d5 {[%emt 0:00:05]} 2. c4 {[%emt 0:00:13]} e6 {[%emt 0:00:01]} 3. Nc3 {[%emt 0:00:18]} Be7 {[%emt 0:00:07]} 4. cxd5 {[%emt 0:00:20]} exd5 {[%emt 0:00:06]} 5. Nf3 {[%emt 0:00:44]} Nf6 {[%emt 0:00:50]} 6. Bg5 {[%emt 0:00:30]} c6 {[%emt 0:00:28]} 7. Qc2 {[%emt 0:01:02]} h6 {[%emt 0:00:09]} 8. Bh4 {[%emt 0:00:20]} O-O {[%emt 0:00:35]} 9. e3 {[%emt 0:00:16]} Nh5 {[%emt 0:03:29]} 10. Bxe7 {[%emt 0:01:51]} Qxe7 {[%emt 0:00:06]} 11. Bd3 {[%emt 0:01:12]} Nd7 {[%emt 0:08:49]} 12. g4 {[%emt 0:06:35]} Nf4 {[%emt 0:02:30]} 13. Bh7+ {[%emt 0:10:41]} Kh8 {[%emt 0:00:01]} 14. O-O-O {[%emt 0:02:10]} Ng6 {[%emt 0:03:44]} 15. Bxg6 {[%emt 0:08:04]} fxg6 {[%emt 0:00:06]} 16. Ne1 {[%emt 0:00:56]} Nb6 {[%emt 0:05:26]} 17. h3 {[%emt 0:05:06]} Be6 {[%emt 0:04:23]} 18. Nd3 {[%emt 0:04:06]} Nc4 {[%emt 0:07:56]} 19. Nf4 {[%emt 0:02:29]} Bf7 {[%emt 0:03:41]} 20. Kb1 {[%emt 0:17:39]} g5 {[%emt 0:02:37]} 21. Nd3 {[%emt 0:05:21]} Bg6 {[%emt 0:01:15]} 22. Rhe1 {[%emt 0:00:56]} Rf3 {[%emt 0:02:52]} 23. Qe2 {[%emt 0:03:44]} Raf8 {[%emt 0:06:49]} 24. Ka1 {[%emt 0:00:44]} Bxd3 {[%emt 0:02:47]} 25. Qxd3 {[%emt 0:00:45]} Rxf2 {[%emt 0:00:33]} 26. Re2 {[%emt 0:01:34]} R8f3 {[%emt 0:06:33]} 27. Rxf2 {[%emt 0:05:24]} Rxf2 {[%emt 0:00:33]} 28. Na4 {[%emt 0:01:47]} b5 {[%emt 0:02:30]} 29. b3 {[%emt 0:01:11]} Qa3 {[%emt 0:00:36]} 30. Qb1 {[%emt 0:00:56]} bxa4 {[%emt 0:00:11]} 0-1

[Event "FIDE WYCC Girls U14 2023"]
[Site "Montesilvano"]
[Date "2023.11.23"]
[Round "10.28"]
[White "Andries, Alexia"]
[Black "Alemanova, Yasmina"]
[Result "1/2-1/2"]
[ECO "E47"]
[WhiteElo "1750"]
[BlackElo "1570"]
[Annotator "NA"]
[PlyCount "87"]
[EventDate "2023.11.13"]
[EventType "swiss"]
[EventCountry "ITA"]
[SourceTitle "playchess.com"]
[Source "ChessBase"]
[SourceQuality "1"]
[TimeControl "40/5400+30:1800+30"]

1. d4 {[%emt 0:00:01]} Nf6 {[%emt 0:00:03]} 2. c4 {[%emt 0:00:03]} e6 {[%emt 0:00:03]} 3. Nc3 {[%emt 0:00:05]} Bb4 {[%emt 0:00:04]} 4. e3 {[%emt 0:00:03]} O-O {[%emt 0:00:04]} 5. Bd3 {[%emt 0:00:04]} b6 {[%emt 0:00:42]} 6. Nf3 {[%emt 0:00:04]} Bb7 {[%emt 0:00:04]} 7. O-O {[%emt 0:00:04]} Bxc3 {[%emt 0:00:05]} 8. bxc3 {[%emt 0:00:05]} Ne4 9. Ne1 {[%emt 0:00:36]} f5 {[%emt 0:00:50]} 10. f3 {[%emt 0:00:08]} Nf6 11. Qc2 {[%emt 0:01:59]} c5 {[%emt 0:03:12]} 12. Qe2 {[%emt 0:17:37]} Nc6 {[%emt 0:02:13]} 13. Nc2 {[%emt 0:01:05]} d6 {[%emt 0:01:49]} 14. e4 {[%emt 0:01:54]} fxe4 {[%emt 0:00:07]} 15. fxe4 {[%emt 0:00:06]} Qc7 {[%emt 0:00:28]} 16. Bg5 {[%emt 0:01:08]} Nd7 {[%emt 0:00:08]} 17. Qg4 {[%emt 0:01:53]} Rxf1+ {[%emt 0:01:28]} 18. Rxf1 {[%emt 0:00:20]} Nf8 {[%emt 0:00:05]} 19. h4 {[%emt 0:18:38]} Kh8 {[%emt 0:08:55]} 20. h5 {[%emt 0:00:16]} h6 {[%emt 0:00:42]} 21. Bd2 {[%emt 0:05:19]} Qe7 {[%emt 0:02:25]} 22. Rf3 {[%emt 0:09:12]} cxd4 {[%emt 0:09:05]} 23. cxd4 {[%emt 0:01:03]} e5 {[%emt 0:00:07]} 24. d5 {[%emt 0:00:08]} Na5 {[%emt 0:01:12]} 25. Ne3 {[%emt 0:01:57]} Bc8 {[%emt 0:00:51]} 26. Nf5 {[%emt 0:02:43]} Nb7 {[%emt 0:00:41]} 27. Qg3 {[%emt 0:01:28]} Bxf5 {[%emt 0:01:05]} 28. Rxf5 {[%emt 0:00:16]} Nh7 {[%emt 0:05:43]} 29. Qg6 {[%emt 0:01:10]} Rf8 {[%emt 0:00:21]} 30. Be2 {[%emt 0:03:33]} Nc5 {[%emt 0:03:39]} 31. Be3 {[%emt 0:11:33]} Rxf5 {[%emt 0:05:28]} 32. Qxf5 {[%emt 0:00:12]} Qf8 {[%emt 0:00:17]} 33. Qxf8+ {[%emt 0:01:29]} Nxf8 {[%emt 0:00:05]} 34. Bxc5 {[%emt 0:00:06]} bxc5 {[%emt 0:00:07]} 35. Bg4 {[%emt 0:00:17]} g6 {[%emt 0:00:36]} 36. hxg6 {[%emt 0:00:33]} Nxg6 {[%emt 0:00:05]} 37. g3 {[%emt 0:00:04]} Kg7 {[%emt 0:01:20]} 38. Kf2 {[%emt 0:00:05]} Kf6 {[%emt 0:00:05]} 39. Kf3 {[%emt 0:00:08]} Kg5 {[%emt 0:01:12]} 40. Bd7 {[%emt 0:00:00]} h5 {[%emt 0:00:00]} 41. Be8 {[%emt 0:02:58]} Kf6 {[%emt 0:06:54]} 42. Bxg6 {[%emt 0:00:20]} Kxg6 {[%emt 0:00:05]} 43. Kg2 {[%emt 0:00:25]} Kf6 {[%emt 0:00:26]} 44. Kh2 {[%emt 0:00:14]} 1/2-1/2

[Event "FIDE WYCC Girls U14 2023"]
[Site "Montesilvano"]
[Date "2023.11.23"]
[Round "10.29"]
[White "Seyhan, Pelin"]
[Black "Caku, Kler"]
[Result "1-0"]
[ECO "C50"]
[WhiteElo "1461"]
[BlackElo "1740"]
[Annotator "NA RC"]
[PlyCount "151"]
[EventDate "2023.11.13"]
[EventType "swiss"]
[EventCountry "ITA"]
[SourceTitle "playchess.com"]
[Source "ChessBase"]
[SourceQuality "1"]
[TimeControl "40/5400+30:1800+30"]

1. e4 {[%emt 0:00:03]} e5 {[%emt 0:01:02]} 2. Nf3 {[%emt 0:00:06]} Nc6 {[%emt 0:00:06]} 3. d4 {[%emt 0:00:05]} exd4 {[%emt 0:00:05]} 4. Bc4 {[%emt 0:00:04]} Be7 {[%emt 0:00:45]} 5. c3 {[%emt 0:00:07]} d6 {[%emt 0:00:18]} 6. Qb3 {[%emt 0:01:27]} Na5 {[%emt 0:01:58]} 7. Bxf7+ {[%emt 0:02:15]} Kf8 {[%emt 0:00:08]} 8. Qa4 {[%emt 0:00:04]} Kxf7 {[%emt 0:01:37]} 9. Qxa5 {[%emt 0:00:07]} Nf6 {[%emt 0:01:50]} 10. O-O {[%emt 0:08:05]} Rf8 {[%emt 0:02:41]} 11. Qb5 {[%emt 0:10:11]} h6 {[%emt 0:01:04]} 12. Qb3+ {[%emt 0:01:16]} Be6 {[%emt 0:00:21]} 13. Qxb7 {[%emt 0:04:41]} Qd7 {[%emt 0:01:25]} 14. Qa6 {[%emt 0:02:26]} Nxe4 {[%emt 0:02:40]} 15. Nxd4 {[%emt 0:05:55]} Nc5 {[%emt 0:05:27]} 16. Qe2 {[%emt 0:00:09]} Bf6 {[%emt 0:03:07]} 17. Be3 {[%emt 0:07:49]} Rae8 {[%emt 0:05:18]} 18. Nxe6 {[%emt 0:01:12]} Nxe6 {[%emt 0:03:16]} 19. Nd2 {[%emt 0:03:47]} d5 {[%emt 0:02:49]} 20. Nb3 {[%emt 0:05:56]} Kg8 {[%emt 0:02:10]} 21. Qd3 {[%emt 0:01:17]} Bg5 {[%emt 0:04:54]} 22. Nc5 {[%emt 0:06:08]} Nxc5 {[%emt 0:02:34]} 23. Bxc5 {[%emt 0:00:02]} Rf5 {[%emt 0:10:07]} 24. Bxa7 {[%emt 0:02:43]} Bf4 {[%emt 0:07:57]} 25. g3 {[%emt 0:12:19]} Bd6 {[%emt 0:01:09]} 26. Be3 {[%emt 0:00:44]} Re4 {[%emt 0:01:15]} 27. f3 {[%emt 0:02:54]} Re7 {[%emt 0:01:46]} 28. Rf2 {[%emt 0:05:12]} Rh5 {[%emt 0:03:25]} 29. Rg2 {[%emt 0:01:01]} Rhe5 {[%emt 0:07:20]} 30. Bd2 {[%emt 0:04:34]} Qe6 {[%emt 0:03:20]} 31. b4 {[%emt 0:00:56]} c5 {[%emt 0:00:40]} 32. a4 {[%emt 0:01:15]} c4 {[%emt 0:00:15]} 33. Qf1 {[%emt 0:01:46]} Bb8 {[%emt 0:01:00]} 34. a5 {[%emt 0:02:55]} Ba7+ {[%emt 0:00:13]} 35. Kh1 {[%emt 0:00:02]} Qc6 {[%emt 0:03:45]} 36. Re1 {[%emt 0:02:20]} Rxe1 {[%emt 0:00:37]} 37. Bxe1 {[%emt 0:00:01]} Qe6 {[%emt 0:03:20]} 38. Bf2 {[%emt 0:00:57]} d4 {[%emt 0:07:28]} 39. Bxd4 {[%emt 0:01:35]} Bxd4 {[%emt 0:00:06]} 40. cxd4 {[%emt 0:00:00]} Qd5 {[%emt 0:00:00]} 41. Rc2 {[%emt 0:02:37]} Rc7 {[%emt 0:11:08]} 42. Qe2 {[%emt 0:01:08]} Qb5 {[%emt 0:02:03]} 43. Qe6+ {[%emt 0:12:48]} Kh8 {[%emt 0:00:50]} 44. Qb6 {[%emt 0:06:28]} Qf5 {[%emt 0:03:04]} 45. Rc3 {[%emt 0:06:01]} Rc8 {[%emt 0:13:16]} 46. Qa6 {[%emt 0:03:11]} h5 {[%emt 0:05:05]} 47. Kg2 {[%emt 0:00:38]} h4 {[%emt 0:03:34]} 48. g4 {[%emt 0:00:55]} Qd7 {[%emt 0:01:05]} 49. Rxc4 {[%emt 0:00:37]} Re8 {[%emt 0:00:35]} 50. Rc5 {[%emt 0:01:01]} Qxd4 {[%emt 0:04:11]} 51. Rc8 {[%emt 0:02:59]} Qd2+ {[%emt 0:01:00]} 52. Kh3 {[%emt 0:00:18]} Rxc8 {[%emt 0:00:33]} 53. Qxc8+ {[%emt 0:00:01]} Kh7 {[%emt 0:00:02]} 54. Qf5+ {[%emt 0:01:30]} Kg8 {[%emt 0:00:12]} 55. Qe6+ {[%emt 0:00:32]} Kh7 {[%emt 0:00:46]} 56. Kxh4 {[%emt 0:01:10]} Qxh2+ {[%emt 0:00:15]} 57. Kg5 {[%emt 0:00:04]} Qd2+ {[%emt 0:00:19]} 58. f4 {[%emt 0:00:16]} Qd8+ {[%emt 0:01:03]} 59. Kh5 {[%emt 0:00:18]} Qa8 {[%emt 0:00:40]} 60. a6 {[%emt 0:00:49]} Qh1+ {[%emt 0:00:27]} 61. Kg5 {[%emt 0:00:01]} Qa8 {[%emt 0:00:50]} 62. b5 {[%emt 0:00:29]} Qd8+ {[%emt 0:00:16]} 63. Kh5 {[%emt 0:00:36]} Qa8 {[%emt 0:00:28]} 64. Qg6+ {[%emt 0:00:21]} Kh8 {[%emt 0:00:08]} 65. Qc6 {[%emt 0:00:04]} g6+ {[%emt 0:01:00]} 66. Kh4 {[%emt 0:01:30]} Qd8+ {[%emt 0:00:07]} 67. Kg3 {[%emt 0:00:32]} Qd3+ {[%emt 0:00:06]} 68. Qf3 {[%emt 0:00:04]} Qd4 {[%emt 0:00:36]} 69. Qa8+ {[%emt 0:00:43]} Kg7 {[%emt 0:00:21]} 70. Qb7+ {[%emt 0:00:07]} Kg8 {[%emt 0:00:39]} 71. a7 {[%emt 0:00:50]} Qg1+ {[%emt 0:00:26]} 72. Kh4 {[%emt 0:00:06]} Qf2+ {[%emt 0:00:39]} 73. Kg5 {[%emt 0:00:11]} Qc5+ {[%emt 0:00:06]} 74. Kxg6 {[%emt 0:01:10]} Qd6+ {[%emt 0:01:13]} 75. Kh5 {[%emt 0:00:14]} Qc5+ {[%emt 0:00:04]} 76. f5 {[%emt 0:00:07]} 1-0

[Event "FIDE WYCC Girls U14 2023"]
[Site "Montesilvano"]
[Date "2023.11.23"]
[Round "10.30"]
[White "Qi, Jenny"]
[Black "Chasouraki, Chrysi"]
[Result "1/2-1/2"]
[ECO "B40"]
[WhiteElo "1737"]
[BlackElo "1559"]
[Annotator "NA RC"]
[PlyCount "110"]
[EventDate "2023.11.13"]
[EventType "swiss"]
[EventCountry "ITA"]
[SourceTitle "playchess.com"]
[Source "ChessBase"]
[SourceQuality "1"]
[TimeControl "40/5400+30:1800+30"]

1. e4 {[%emt 0:00:03]} c5 {[%emt 0:01:45]} 2. Nf3 {[%emt 0:00:08]} e6 {[%emt 0:00:15]} 3. d4 {[%emt 0:00:00]} cxd4 {[%emt 0:00:07]} 4. Nxd4 {[%emt 0:00:07]} Nf6 {[%emt 0:00:04]} 5. Nc3 {[%emt 0:00:15]} Nc6 {[%emt 0:00:05]} 6. Ndb5 {[%emt 0:00:52]} Bb4 {[%emt 0:00:06]} 7. a3 {[%emt 0:01:10]} Bxc3+ {[%emt 0:00:05]} 8. Nxc3 {[%emt 0:00:09]} d5 {[%emt 0:00:03]} 9. exd5 {[%emt 0:02:54]} exd5 {[%emt 0:00:05]} 10. Bd3 {[%emt 0:06:11]} O-O {[%emt 0:00:05]} 11. O-O {[%emt 0:00:58]} d4 {[%emt 0:00:03]} 12. Ne4 {[%emt 0:04:34]} Bf5 {[%emt 0:03:12]} 13. Bg5 {[%emt 0:20:13]} Bxe4 {[%emt 0:05:39]} 14. Bxe4 {[%emt 0:00:53]} h6 {[%emt 0:00:40]} 15. Bxc6 {[%emt 0:07:19]} bxc6 {[%emt 0:01:22]} 16. Bh4 {[%emt 0:00:32]} Qd6 {[%emt 0:02:21]} 17. Qf3 {[%emt 0:07:35]} Nd7 {[%emt 0:04:48]} 18. Rfe1 {[%emt 0:06:18]} Ne5 {[%emt 0:14:42]} 19. Qe4 {[%emt 0:04:44]} Rae8 {[%emt 0:06:13]} 20. Bg3 {[%emt 0:07:21]} f6 {[%emt 0:01:40]} 21. Rad1 {[%emt 0:02:01]} c5 {[%emt 0:01:39]} 22. Qf5 {[%emt 0:08:51]} Qb6 {[%emt 0:05:56]} 23. f4 {[%emt 0:02:11]} Nf7 {[%emt 0:07:32]} 24. b3 {[%emt 0:04:24]} Qc6 {[%emt 0:10:12]} 25. Bf2 {[%emt 0:01:47]} Nd6 {[%emt 0:04:27]} 26. Qd3 {[%emt 0:00:48]} Ne4 {[%emt 0:12:55]} 27. Qc4+ {[%emt 0:01:17]} Qe6 {[%emt 0:00:36]} 28. Qxe6+ {[%emt 0:02:10]} Rxe6 {[%emt 0:00:02]} 29. b4 {[%emt 0:00:31]} Nxf2 {[%emt 0:02:35]} 30. Kxf2 {[%emt 0:00:19]} Rxe1 {[%emt 0:01:49]} 31. Kxe1 {[%emt 0:01:42]} cxb4 {[%emt 0:01:35]} 32. axb4 {[%emt 0:02:28]} Rc8 {[%emt 0:00:45]} 33. Rxd4 {[%emt 0:00:37]} Rxc2 {[%emt 0:00:16]} 34. Kf1 {[%emt 0:00:38]} Rb2 {[%emt 0:06:26]} 35. h3 {[%emt 0:01:12]} h5 {[%emt 0:00:45]} 36. f5 {[%emt 0:02:21]} Kh7 {[%emt 0:05:15]} 37. Rh4 {[%emt 0:01:30]} g6 {[%emt 0:00:33]} 38. g4 {[%emt 0:01:23]} g5 {[%emt 0:02:14]} 39. Rxh5+ {[%emt 0:00:26]} Kg7 {[%emt 0:00:03]} 40. h4 {[%emt 0:00:00]} gxh4 {[%emt 0:00:00]} 41. Rxh4 {[%emt 0:01:05]} Rxb4 {[%emt 0:01:04]} 42. Ke2 {[%emt 0:02:09]} a5 {[%emt 0:04:18]} 43. Kd3 {[%emt 0:02:22]} a4 {[%emt 0:02:24]} 44. Kc3 {[%emt 0:08:37]} Rb1 {[%emt 0:05:05]} 45. Kc2 {[%emt 0:05:31]} Rb3 {[%emt 0:00:55]} 46. g5 {[%emt 0:06:02]} fxg5 {[%emt 0:01:20]} 47. Rxa4 {[%emt 0:00:13]} Rf3 {[%emt 0:00:09]} 48. Ra6 {[%emt 0:00:52]} Rxf5 {[%emt 0:12:31]} 49. Kd3 {[%emt 0:00:48]} Re5 {[%emt 0:00:47]} 50. Rb6 {[%emt 0:02:01]} Kh7 {[%emt 0:01:31]} 51. Ra6 {[%emt 0:01:32]} g4 {[%emt 0:01:58]} 52. Ra4 {[%emt 0:00:45]} Rg5 {[%emt 0:00:29]} 53. Ke3 {[%emt 0:01:05]} g3 {[%emt 0:01:36]} 54. Ra1 {[%emt 0:00:15]} Kg6 {[%emt 0:01:01]} 55. Kf3 {[%emt 0:00:44]} g2 {[%emt 0:00:52]} 1/2-1/2

[Event "FIDE WYCC Girls U14 2023"]
[Site "Montesilvano"]
[Date "2023.11.23"]
[Round "10.31"]
[White "Li, Anna Sofie"]
[Black "Mongoljin, Davaadorj"]
[Result "*"]
[WhiteElo "1722"]
[BlackElo "1077"]
[Annotator "NA RC"]
[PlyCount "84"]
[EventDate "2023.11.13"]
[EventType "swiss"]
[EventCountry "ITA"]
[SourceTitle "playchess.com"]
[Source "ChessBase"]
[SourceQuality "1"]
[TimeControl "40/5400+30:1800+30"]

1. e4 {[%emt 0:00:03]} c5 {[%emt 0:03:19]} 2. Nf3 {[%emt 0:00:09]} d6 {[%emt 0:00:11]} 3. d4 {[%emt 0:00:07]} cxd4 {[%emt 0:00:10]} 4. Nxd4 {[%emt 0:00:07]} Nf6 {[%emt 0:00:02]} 5. Nc3 {[%emt 0:00:12]} Nc6 {[%emt 0:00:11]} 6. f3 {[%emt 0:00:29]} e5 {[%emt 0:00:27]} 7. Nb3 {[%emt 0:00:08]} Be6 {[%emt 0:00:10]} 8. Nd5 {[%emt 0:00:39]} Bxd5 {[%emt 0:08:03]} 9. exd5 {[%emt 0:00:13]} Nd4 {[%emt 0:03:03]} 10. Nxd4 {[%emt 0:03:40]} exd4 {[%emt 0:00:17]} 11. Bb5+ {[%emt 0:01:15]} Nd7 {[%emt 0:03:09]} 12. Bxd7+ {[%emt 0:00:41]} Qxd7 {[%emt 0:06:46]} 13. Qxd4 {[%emt 0:02:03]} Qc7 {[%emt 0:29:48]} 14. c3 {[%emt 0:04:49]} h6 {[%emt 0:20:47]} 15. O-O {[%emt 0:01:57]} Qc5 {[%emt 0:01:58]} 16. Re1+ {[%emt 0:00:51]} Kd7 {[%emt 0:01:19]} 17. Be3 {[%emt 0:04:33]} Qxd4 {[%emt 0:01:09]} 18. Bxd4 {[%emt 0:00:09]} a6 {[%emt 0:02:33]} 19. c4 {[%emt 0:02:39]} Rc8 {[%emt 0:03:29]} 20. Rac1 {[%emt 0:01:42]} Rg8 {[%emt 0:02:14]} 21. Rc3 {[%emt 0:07:33]} g5 {[%emt 0:09:31]} 22. Rb3 {[%emt 0:08:29]} Rc7 {[%emt 0:00:17]} 23. Rc3 {[%emt 0:03:01]} Bg7 {[%emt 0:02:30]} 24. Bxg7 {[%emt 0:00:35]} Rxg7 {[%emt 0:00:01]} 25. b4 {[%emt 0:00:59]} f6 {[%emt 0:01:04]} 26. Re6 {[%emt 0:01:36]} Rf7 {[%emt 0:00:29]} 27. c5 {[%emt 0:00:32]} dxc5 {[%emt 0:00:29]} 28. bxc5 {[%emt 0:01:23]} Kd8 {[%emt 0:00:30]} 29. c6 {[%emt 0:03:06]} bxc6 {[%emt 0:00:29]} 30. Rcxc6 {[%emt 0:00:36]} Rxc6 31. Rxc6 {[%emt 0:00:28]} a5 {[%emt 0:00:59]} 32. Ra6 {[%emt 0:00:12]} Rd7 {[%emt 0:00:34]} 33. Rxa5 {[%emt 0:00:22]} Ke7 {[%emt 0:00:27]} 34. Kf2 {[%emt 0:00:33]} h5 {[%emt 0:00:27]} 35. a4 {[%emt 0:00:32]} Kd6 {[%emt 0:00:36]} 36. Ke3 {[%emt 0:00:48]} Ke5 {[%emt 0:00:19]} 37. g3 {[%emt 0:00:44]} Rd6 {[%emt 0:00:40]} 38. Rb5 {[%emt 0:02:33]} Ra6 {[%emt 0:00:29]} 39. a5 {[%emt 0:00:46]} Ra7 {[%emt 0:00:32]} 40. Kd3 {[%emt 0:00:00]} Kd6 {[%emt 0:00:00]} 41. Kd4 {[%emt 0:01:58]} Kd7 {[%emt 0:04:35]} 42. Kc5 {[%emt 0:03:05]} Rc7+ {[%emt 0:01:32]} *

[Event "FIDE WYCC Girls U14 2023"]
[Site "Montesilvano"]
[Date "2023.11.23"]
[Round "10.32"]
[White "Briem, Gudrun Fanney"]
[Black "Wang, Yushin Andrea"]
[Result "1-0"]
[ECO "D00"]
[WhiteElo "1692"]
[BlackElo "1186"]
[Annotator "NA RC"]
[PlyCount "81"]
[EventDate "2023.11.13"]
[EventType "swiss"]
[EventCountry "ITA"]
[SourceTitle "playchess.com"]
[Source "ChessBase"]
[SourceQuality "1"]
[TimeControl "40/5400+30:1800+30"]

1. d4 {[%emt 0:00:04]} d5 {[%emt 0:00:06]} 2. Bf4 {[%emt 0:00:10]} c5 {[%emt 0:00:14]} 3. e3 {[%emt 0:00:10]} Nc6 {[%emt 0:00:41]} 4. Nf3 {[%emt 0:00:10]} Bg4 {[%emt 0:01:14]} 5. Be2 {[%emt 0:03:52]} Nf6 {[%emt 0:02:08]} 6. Nbd2 {[%emt 0:03:03]} Qb6 {[%emt 0:03:36]} 7. dxc5 {[%emt 0:00:56]} Qxb2 {[%emt 0:01:25]} 8. Rb1 {[%emt 0:06:25]} Qc3 {[%emt 0:01:33]} 9. O-O {[%emt 0:14:15]} g6 {[%emt 0:06:30]} 10. Rxb7 {[%emt 0:11:18]} Qxc5 {[%emt 0:03:52]} 11. Bb5 {[%emt 0:10:41]} Bd7 {[%emt 0:07:30]} 12. Qa1 {[%emt 0:06:04]} Bg7 {[%emt 0:06:08]} 13. Nb3 {[%emt 0:01:11]} Qa3 {[%emt 0:02:11]} 14. Rxd7 {[%emt 0:06:13]} O-O {[%emt 0:11:39]} 15. Rb7 {[%emt 0:02:51]} Nd8 {[%emt 0:02:07]} 16. Rc7 {[%emt 0:06:22]} Ne8 {[%emt 0:02:32]} 17. Rc3 {[%emt 0:03:00]} Bxc3 {[%emt 0:04:09]} 18. Qxc3 {[%emt 0:00:04]} Ng7 {[%emt 0:07:05]} 19. Bh6 {[%emt 0:01:07]} Nde6 {[%emt 0:03:48]} 20. Bd7 {[%emt 0:01:39]} Rfd8 {[%emt 0:03:04]} 21. Bxe6 {[%emt 0:01:08]} Nxe6 {[%emt 0:00:16]} 22. Ng5 {[%emt 0:04:06]} d4 {[%emt 0:04:28]} 23. exd4 {[%emt 0:00:39]} Rac8 {[%emt 0:03:55]} 24. Qe3 {[%emt 0:05:39]} Nxg5 {[%emt 0:02:04]} 25. Bxg5 {[%emt 0:01:46]} f6 {[%emt 0:02:29]} 26. Bh6 {[%emt 0:01:15]} Qd6 {[%emt 0:03:25]} 27. c3 {[%emt 0:01:42]} e5 {[%emt 0:04:54]} 28. h4 {[%emt 0:04:20]} exd4 {[%emt 0:01:50]} 29. cxd4 {[%emt 0:00:10]} Re8 {[%emt 0:00:53]} 30. Qd3 {[%emt 0:01:10]} Qa3 {[%emt 0:01:25]} 31. Qf3 {[%emt 0:00:39]} Qd6 {[%emt 0:01:59]} 32. Rd1 {[%emt 0:00:44]} Re7 {[%emt 0:02:17]} 33. d5 {[%emt 0:00:52]} Rce8 {[%emt 0:01:12]} 34. Bf4 {[%emt 0:01:38]} Re1+ {[%emt 0:00:33]} 35. Rxe1 {[%emt 0:00:04]} Rxe1+ {[%emt 0:00:06]} 36. Kh2 {[%emt 0:00:03]} Qb4 {[%emt 0:02:04]} 37. d6 {[%emt 0:00:52]} Qe4 {[%emt 0:01:23]} 38. Qxe4 {[%emt 0:00:30]} Rxe4 {[%emt 0:00:05]} 39. d7 {[%emt 0:00:06]} Rxf4 {[%emt 0:00:32]} 40. d8=Q+ {[%emt 0:00:00]} Kg7 {[%emt 0:00:00]} 41. Qc7+ {[%emt 0:00:16]} 1-0

[Event "FIDE WYCC Girls U14 2023"]
[Site "Montesilvano"]
[Date "2023.11.23"]
[Round "10.33"]
[White "Negre, Emilie"]
[Black "Michalska, Lena"]
[Result "1-0"]
[ECO "B06"]
[WhiteElo "1871"]
[BlackElo "1640"]
[Annotator "NA RC"]
[PlyCount "55"]
[EventDate "2023.11.13"]
[EventType "swiss"]
[EventCountry "ITA"]
[SourceTitle "playchess.com"]
[Source "ChessBase"]
[SourceQuality "1"]
[TimeControl "40/5400+30:1800+30"]

1. e4 {[%emt 0:00:02]} g6 {[%emt 0:03:12]} 2. d4 {[%emt 0:00:12]} Bg7 {[%emt 0:00:04]} 3. Nc3 {[%emt 0:00:10]} a6 {[%emt 0:00:04]} 4. f4 {[%emt 0:00:11]} b5 {[%emt 0:00:08]} 5. Nf3 {[%emt 0:00:25]} Bb7 {[%emt 0:00:13]} 6. Bd3 {[%emt 0:00:25]} Nf6 {[%emt 0:01:33]} 7. e5 {[%emt 0:14:18]} Nd5 {[%emt 0:00:07]} 8. Ne2 {[%emt 0:10:02]} c5 {[%emt 0:06:10]} 9. c3 {[%emt 0:01:17]} c4 {[%emt 0:03:13]} 10. Bc2 {[%emt 0:10:00]} Qc7 {[%emt 0:00:32]} 11. f5 {[%emt 0:02:17]} e6 {[%emt 0:09:11]} 12. f6 {[%emt 0:12:15]} Bf8 {[%emt 0:00:06]} 13. h4 {[%emt 0:01:40]} h6 {[%emt 0:01:43]} 14. Bf4 {[%emt 0:07:16]} d6 {[%emt 0:12:32]} 15. Qb1 {[%emt 0:01:54]} Nxf4 {[%emt 0:10:02]} 16. Nxf4 {[%emt 0:00:33]} Bxf3 {[%emt 0:00:09]} 17. gxf3 {[%emt 0:02:38]} dxe5 {[%emt 0:00:16]} 18. Nxg6 {[%emt 0:00:23]} fxg6 {[%emt 0:00:47]} 19. Bxg6+ {[%emt 0:00:20]} Kd7 {[%emt 0:06:19]} 20. Qe4 {[%emt 0:04:50]} Qc6 {[%emt 0:00:01]} 21. Qxe5 {[%emt 0:02:14]} Qxf3 {[%emt 0:01:27]} 22. Be4 {[%emt 0:01:06]} Bd6 {[%emt 0:07:32]} 23. Bxf3 {[%emt 0:00:36]} Bxe5 {[%emt 0:00:02]} 24. dxe5 {[%emt 0:09:33]} Ra7 {[%emt 0:00:10]} 25. O-O-O+ {[%emt 0:00:15]} Kc7 {[%emt 0:07:26]} 26. Rd6 {[%emt 0:01:09]} Nd7 {[%emt 0:01:04]} 27. Rxe6 {[%emt 0:00:10]} Kc8 {[%emt 0:04:08]} 28. f7 {[%emt 0:02:19]} 1-0